lending/lending_fUSD_20251116
["ID","MTS","AMOUNT","RATE_DAILY","PERIOD"]
[394118587,1763305848771,-169.780707,0.000249,7]
[394118588,1763305848780,-169.780707,0.000249,7]
[394118589,1763305848790,-178.231537,0.000249,7]
[394118590,1763305848799,-151.0,0.000249,7]
[394118591,1763305848808,-169.780707,0.000249,7]
[394118592,1763305848818,-151.0,0.000249,7]
[394118593,1763305848827,-1200.0,0.000249,9]
[394118594,1763305848837,-151.0,0.000249,7]
[394118595,1763305848846,-162.589972,0.000249,7]
[394118596,1763305848855,-197.643736,0.000249,7]
[394118597,1763305848865,-197.643736,0.000249,7]
[394118598,1763305848874,-197.643736,0.000249,7]
[394118599,1763305848884,-151.0,0.000249,7]
[394118600,1763305848893,-197.643736,0.000249,7]
[394118601,1763305848903,-151.0,0.000249,7]
[394118602,1763305848912,-151.0,0.000249,7]
[394118603,1763305848922,-151.0,0.000249,7]
[394118604,1763305848932,-621587.842354,0.000249,3]
[394118605,1763305848942,-151.0,0.000249,7]
[394118606,1763305848952,-151.0,0.000249,7]
[394118607,1763305848962,-3999.996,0.000249,7]
[394118608,1763305848972,-3999.996,0.000249,7]
[394118609,1763305848981,-3999.996,0.000249,7]
[394118610,1763305848991,-3999.996,0.000249,7]
[394118611,1763305849000,-238.041183,0.000249,7]
[394118612,1763305849010,-238.041183,0.000249,7]
[394118613,1763305849020,-238.041183,0.000249,7]
[394118614,1763305849029,-238.041183,0.000249,7]
[394118615,1763305849039,-479.06402154,0.000249,7]
[394118616,1763305849048,-151.0,0.000249,7]
[394118617,1763305849058,-151.0,0.000249,7]
[394118618,1763305849067,-151.0,0.000249,7]
[394118619,1763305849076,-483.170037,0.000249,7]
[394118620,1763305849088,-151.0,0.000249,7]
[394118621,1763305849098,-483.170037,0.000249,7]
[394118622,1763305849108,-294.343143,0.000249,7]
[394118623,1763305849117,-483.170037,0.000249,7]
[394118624,1763305849127,-483.170037,0.000249,7]
[394118625,1763305849136,-151.0,0.000249,7]
[394118626,1763305849145,-151.0,0.000249,7]
[394118627,1763305849155,-1081.086785,0.000249,7]
[394118628,1763305849164,-1081.086785,0.000249,7]
[394118629,1763305849173,-1081.086785,0.000249,7]
[394118630,1763305849184,-1081.086785,0.000249,7]
[394118631,1763305849193,-151.0,0.000249,7]
[394118632,1763305849203,-151.0,0.000249,7]
[394118633,1763305849212,-151.0,0.000249,7]
[394118634,1763305849221,-151.0,0.000249,7]
[394118635,1763305849231,-191.308463,0.000249,7]
[394118636,1763305849240,-151.0,0.000249,7]
[394118637,1763305849249,-151.0,0.000249,7]
[394118638,1763305849260,-151.0,0.000249,7]
[394118639,1763305849270,-151.0,0.000249,7]
[394118640,1763305849279,-151.0,0.000249,7]
[394118641,1763305849288,-151.0,0.000249,7]
[394118642,1763305849298,-532.0,0.00024932,7]
[394118643,1763305849307,-150.0,0.00024932,2]
[394118644,1763305849317,-150.0,0.00024932,2]
[394118645,1763305849327,-439.0,0.00024932,2]
[394118646,1763305849336,-500.0,0.00024932,2]
[394118647,1763305849346,-814.0,0.00024932,2]
[394118648,1763305849355,-500.0,0.00024932,2]
[394118649,1763305849364,-500.0,0.00024932,2]
[394118650,1763305849373,-446.0,0.00024932,2]
[394118651,1763305849382,-500.0,0.00024932,2]
[394118652,1763305849391,-234.98560342,0.00024932,2]
[394118653,1763305849403,-500.0,0.00024932,2]
[394118654,1763305849412,-500.0,0.00024932,2]
[394118655,1763305849423,-500.0,0.00024932,2]
[394118656,1763305849433,-150.0,0.00024932,2]
[394118657,1763305849442,-552.0,0.00024932,2]
[394118658,1763305849451,-500.0,0.00024932,2]
[394118659,1763305849461,-150.0,0.00024932,2]
[394118660,1763305849470,-500.0,0.00024932,2]
[394118661,1763305849479,-500.0,0.00024932,2]
[394118662,1763305849488,-1099.0,0.00024932,2]
[394118663,1763305849497,-224.775967,0.00024932,7]
[394118664,1763305849508,-224.775967,0.00024932,7]
[394118665,1763305849518,-224.775967,0.00024932,7]
[394118666,1763305849527,-224.775967,0.00024932,7]
[394118667,1763305849537,-151.0,0.00024932,7]
[394118668,1763305849546,-151.0,0.00024932,7]
[394118669,1763305849555,-151.0,0.00024932,7]
[394118670,1763305849565,-287.48898412,0.00024973,2]
[394118671,1763305849574,-209.71778513,0.00024987,2]
[394118672,1763305849584,-204.60731396,0.00024987,2]
[394118673,1763305849594,-439.0,0.00024987,2]
[394118674,1763305849604,-500.0,0.00024987,2]
[394118675,1763305849613,-814.0,0.00024987,2]
[394118676,1763305849622,-500.0,0.00024987,2]
[394118677,1763305849631,-500.0,0.00024987,2]
[394118678,1763305849641,-446.0,0.00024987,2]
[394118679,1763305849650,-500.0,0.00024987,2]
[394118680,1763305849659,-500.0,0.00024987,2]
[394118681,1763305849668,-500.0,0.00024987,2]
[394118682,1763305849677,-405.30573341,0.00024987,2]
[394118683,1763305849687,-189.19478539,0.00024987,2]
[394118684,1763305849696,-552.0,0.00024987,2]
[394118685,1763305849705,-500.0,0.00024987,2]
[394118686,1763305849715,-150.0,0.00024987,2]
[394118687,1763305849725,-500.0,0.00024987,2]
[394118688,1763305849734,-500.0,0.00024987,2]
[394118689,1763305849743,-1099.0,0.00024987,2]
[394118690,1763305849752,-500.0,0.00024989,2]
[394118691,1763305849761,-167.76,0.00024993,2]
[394118692,1763305849771,-160.40605547,0.00025,2]
[394118693,1763305849781,-360.0,0.00025,2]
[394118694,1763305849792,-5916.17776993,0.00025,2]
[394118695,1763305849802,-3011.90817493,0.00025,2]
[394118696,1763305849813,-7060.68590776,0.00025,2]
[394118697,1763305849824,-1052.97718914,0.00025,2]
[394118698,1763305849834,-165.49938845,0.00025,2]
[394118699,1763305849844,-4791.82317715,0.00025,15]
[394118700,1763305849853,-2561.63585085,0.00025,2]
[394118701,1763305849866,-161.85,0.00025,2]
[394118702,1763305849876,-602.25446593,0.00025,2]
[394118703,1763305849886,-205.32476032,0.00025,2]
[394118704,1763305849896,-1765.92228219,0.00025,2]
[394118705,1763305849905,-532.0,0.00025,7]
[394118706,1763305849915,-150.0,0.00025,2]
[394118707,1763305849925,-150.0,0.00025,2]
[394118708,1763305849935,-150.0,0.00025,2]
[394118709,1763305849944,-150.0,0.00025,2]
[394118710,1763305849955,-150.0,0.00025,2]
[394118711,1763305849964,-439.0,0.00025041,2]
[394118712,1763305849975,-500.0,0.00025041,2]
[394118713,1763305849986,-814.0,0.00025041,2]
[394118714,1763305849996,-500.0,0.00025041,2]
[394118715,1763305850007,-591.45812816,0.00025041,2]
[394118716,1763305850017,-446.0,0.00025041,2]
[394118717,1763305850027,-500.0,0.00025041,2]
[394118718,1763305850036,-500.0,0.00025041,2]
[394118719,1763305850045,-552.0,0.00025041,2]
[394118720,1763305850058,-582.85058391,0.00025041,2]
[394118721,1763305850069,-154.85574373,0.00025041,2]
[394118722,1763305850079,-500.0,0.00025041,2]
[394118723,1763305850092,-500.0,0.00025041,2]
[394118724,1763305850102,-1099.0,0.00025041,2]
[394118725,1763305850112,-169.42,0.00025057,2]
[394118726,1763305850123,-169.42,0.00025057,2]
[394118727,1763305850134,-169.42,0.00025057,2]
[394118728,1763305850144,-169.34,0.00025057,2]
[394118729,1763305850154,-439.0,0.00025096,2]
[394118730,1763305850164,-187.2697412,0.00025096,2]
[394118731,1763305850174,-814.0,0.00025096,2]
[394118732,1763305850183,-500.0,0.00025096,2]
[394118733,1763305850194,-446.0,0.00025096,2]
[394118734,1763305850204,-500.0,0.00025096,2]
[394118735,1763305850214,-500.0,0.00025096,2]
[394118736,1763305850224,-552.0,0.00025096,2]
[394118737,1763305850234,-500.0,0.00025096,2]
[394118738,1763305850243,-500.0,0.00025096,2]
[394118739,1763305850252,-1099.0,0.00025096,2]
[394118740,1763305850265,-1000.0,0.000251,2]
[394118741,1763305850275,-214519.0,0.000251,2]
[394118742,1763305850285,-439.0,0.00025151,2]
[394118743,1763305850295,-814.0,0.00025151,2]
[394118744,1763305850304,-500.0,0.00025151,2]
[394118745,1763305850314,-446.0,0.00025151,2]
[394118746,1763305850326,-500.0,0.00025151,2]
[394118747,1763305850336,-427.67813262,0.00025151,2]
[394118748,1763305850346,-552.0,0.00025151,2]
[394118749,1763305850356,-500.0,0.00025151,2]
[394118750,1763305850365,-500.0,0.00025151,2]
[394118751,1763305850375,-1099.0,0.00025151,2]
[394118752,1763305850385,-1000.0,0.00025159,7]
[394118753,1763305850394,-532.0,0.00025205,7]
[394118754,1763305850404,-439.0,0.00025206,2]
[394118755,1763305850414,-814.0,0.00025206,2]
[394118756,1763305850424,-500.0,0.00025206,2]
[394118757,1763305850433,-446.0,0.00025206,2]
[394118758,1763305850445,-500.0,0.00025206,2]
[394118759,1763305850458,-552.0,0.00025206,2]
[394118760,1763305850468,-562.37453689,0.00025206,2]
[394118761,1763305850477,-500.0,0.00025206,2]
[394118762,1763305850486,-1099.0,0.00025206,2]
[394118763,1763305850495,-439.0,0.00025261,2]
[394118764,1763305850505,-814.0,0.00025261,2]
[394118765,1763305850514,-500.0,0.00025261,2]
[394118766,1763305850524,-446.0,0.00025261,2]
[394118767,1763305850534,-500.0,0.00025261,2]
[394118768,1763305850544,-552.0,0.00025261,2]
[394118769,1763305850553,-500.0,0.00025261,2]
[394118770,1763305850563,-1099.0,0.00025261,2]
[394118771,1763305850573,-2000.0,0.000253,2]
[394118772,1763305850582,-439.0,0.00025315,2]
[394118773,1763305850592,-814.0,0.00025315,2]
[394118774,1763305850601,-500.0,0.00025315,2]
[394118775,1763305850610,-446.0,0.00025315,2]
[394118776,1763305850620,-385.69115399,0.00025315,2]
[394118777,1763305850785,-552.0,0.00025315,2]
[394118778,1763305850795,-500.0,0.00025315,2]
[394118779,1763305850807,-1099.0,0.00025315,2]
[394118780,1763305850816,-439.0,0.0002537,2]
[394118781,1763305850825,-814.0,0.0002537,2]
[394118782,1763305850834,-500.0,0.0002537,2]
[394118783,1763305850843,-446.0,0.0002537,2]
[394118784,1763305850852,-552.0,0.0002537,2]
[394118785,1763305850861,-500.0,0.0002537,2]
[394118786,1763305850871,-1099.0,0.0002537,2]
[394118787,1763305850880,-17221.4713032,0.00025409,2]
[394118788,1763305850889,-439.0,0.00025425,2]
[394118789,1763305850899,-814.0,0.00025425,2]
[394118790,1763305850908,-500.0,0.00025425,2]
[394118791,1763305850918,-446.0,0.00025425,2]
[394118792,1763305850927,-552.0,0.00025425,2]
[394118793,1763305850937,-500.0,0.00025425,2]
[394118794,1763305850948,-1099.0,0.00025425,2]
[394118795,1763305850958,-500.0,0.00025448,2]
[394118796,1763305850967,-500.0,0.00025448,2]
[394118797,1763305850977,-500.0,0.00025448,2]
[394118798,1763305850987,-166.66,0.00025449,2]
[394118799,1763305850996,-532.0,0.00025479,7]
[394118800,1763305851006,-439.0,0.0002548,2]
[394118801,1763305851016,-814.0,0.0002548,2]
[394118802,1763305851026,-500.0,0.0002548,2]
[394118803,1763305851035,-446.0,0.0002548,2]
[394118804,1763305851045,-552.0,0.0002548,2]
[394118805,1763305851055,-500.0,0.0002548,2]
[394118806,1763305851064,-1099.0,0.0002548,2]
[394118807,1763305851073,-479.06402154,0.000255,3]
[394118808,1763305851083,-439.0,0.00025535,2]
[394118809,1763305851098,-814.0,0.00025535,2]
[394118810,1763305851107,-500.0,0.00025535,2]
[394118811,1763305851117,-446.0,0.00025535,2]
[394118812,1763305851127,-552.0,0.00025535,2]
[394118813,1763305851136,-500.0,0.00025535,2]
[394118814,1763305851146,-1099.0,0.00025535,2]
[394118815,1763305851155,-151.0,0.00025548,7]
[394118816,1763305851165,-151.0,0.00025548,7]
[394118817,1763305851174,-151.0,0.00025548,7]
[394118818,1763305851183,-151.0,0.00025548,7]
[394118819,1763305851191,-151.0,0.00025548,7]
[394118820,1763305851209,-300.0,0.00025548,3]
[394118821,1763305851220,-300.0,0.00025548,3]
[394118822,1763305851230,-300.0,0.00025548,3]
[394118823,1763305851240,-300.0,0.00025548,3]
[394118824,1763305851250,-300.0,0.00025548,3]
[394118825,1763305851260,-439.0,0.00025589,2]
[394118826,1763305851270,-814.0,0.00025589,2]
[394118827,1763305851279,-408.36483336,0.00025589,2]
[394118828,1763305851289,-446.0,0.00025589,2]
[394118829,1763305851299,-552.0,0.00025589,2]
[394118830,1763305851309,-500.0,0.00025589,2]
[394118831,1763305851320,-1099.0,0.00025589,2]
[394118832,1763305851331,-5518.0,0.000256,3]
[394118833,1763305851343,-240.86912587,0.00025619,2]
[394118834,1763305851352,-439.0,0.00025644,2]
[394118835,1763305851362,-814.0,0.00025644,2]
[394118836,1763305851372,-446.0,0.00025644,2]
[394118837,1763305851381,-552.0,0.00025644,2]
[394118838,1763305851391,-500.0,0.00025644,2]
[394118839,1763305851403,-1099.0,0.00025644,2]
[394118840,1763305851414,-249.08869,0.0002565,2]
[394118841,1763305851425,-165.71,0.00025667,2]
[394118842,1763305851435,-373.07297731,0.00025679,2]
[394118843,1763305851446,-320.74051982,0.00025679,2]
[394118844,1763305851456,-439.0,0.00025699,2]
[394118845,1763305851467,-814.0,0.00025699,2]
[394118846,1763305851477,-446.0,0.00025699,2]
[394118847,1763305851488,-552.0,0.00025699,2]
[394118848,1763305851499,-500.0,0.00025699,2]
[394118849,1763305851512,-1099.0,0.00025699,2]
[394118850,1763305851522,-1195.95199903,0.000257,2]
[394118851,1763305851532,-1195.95199903,0.000257,2]
[394118852,1763305851541,-1067.77,0.00025731,2]
[394118853,1763305851551,-700.23,0.00025731,2]
[394118854,1763305851561,-700.23,0.00025731,2]
[394118855,1763305851571,-700.23,0.00025731,2]
[394118856,1763305851581,-700.23,0.00025731,2]
[394118857,1763305851592,-700.23,0.00025731,2]
[394118858,1763305851604,-1084.56,0.00025731,2]
[394118859,1763305851614,-852.9,0.00025748,2]
[394118860,1763305851624,-532.0,0.00025753,7]
[394118861,1763305851634,-439.0,0.00025754,2]
[394118862,1763305851643,-814.0,0.00025754,2]
[394118863,1763305851652,-446.0,0.00025754,2]
[394118864,1763305851662,-552.0,0.00025754,2]
[394118865,1763305851673,-500.0,0.00025754,2]
[394118866,1763305851683,-1099.0,0.00025754,2]
[394118867,1763305851694,-439.0,0.00025809,2]
[394118868,1763305851705,-814.0,0.00025809,2]
[394118869,1763305851717,-446.0,0.00025809,2]
[394118870,1763305851728,-552.0,0.00025809,2]
[394118871,1763305851738,-500.0,0.00025809,2]
[394118872,1763305851752,-1099.0,0.00025809,2]
[394118873,1763305851763,-165.71,0.00025833,2]
[394118874,1763305851775,-439.0,0.00025863,2]
[394118875,1763305851786,-814.0,0.00025863,2]
[394118876,1763305851798,-446.0,0.00025863,2]
[394118877,1763305851809,-552.0,0.00025863,2]
[394118878,1763305851819,-514.22497362,0.00025863,2]
[394118879,1763305851829,-1099.0,0.00025863,2]
[394118880,1763305851839,-532.0,0.0002589,7]
[394118881,1763305851850,-500.0,0.00025899,7]
[394118882,1763305851860,-439.0,0.00025918,2]
[394118883,1763305851871,-814.0,0.00025918,2]
[394118884,1763305851882,-446.0,0.00025918,2]
[394118885,1763305851892,-552.0,0.00025918,2]
[394118886,1763305851903,-1099.0,0.00025918,2]
[394118887,1763305851914,-1000.0,0.00025949,2]
[394118888,1763305851924,-439.0,0.00025973,2]
[394118889,1763305851934,-814.0,0.00025973,2]
[394118890,1763305851944,-446.0,0.00025973,2]
[394118891,1763305851955,-552.0,0.00025973,2]
[394118892,1763305851965,-1099.0,0.00025973,2]
[394118893,1763305851976,-505.547,0.00025977,2]
[394118894,1763305851986,-6488.0,0.00025977,2]
[394118895,1763305851995,-1604.0,0.00025977,2]
[394118896,1763305852004,-594.15617168,0.0002599,2]
[394118897,1763305852013,-244.10011,0.0002599,7]
[394118898,1763305852021,-217.248841,0.0002599,7]
[394118899,1763305852030,-151.0,0.0002599,7]
[394118900,1763305852039,-151.0,0.0002599,7]
[394118901,1763305852048,-169.198971,0.0002599,7]
[394118902,1763305852058,-21167.465986,0.00026,2]
[394118903,1763305852067,-4138.65,0.00026,2]
[394118904,1763305852077,-214.16688223,0.00026,2]
[394118905,1763305852089,-161.20690297,0.00026,2]
[394118906,1763305852099,-586.73,0.00026,7]
[394118907,1763305852108,-164.0,0.00026,7]
[394118908,1763305852122,-439.0,0.00026028,2]
[394118909,1763305852133,-814.0,0.00026028,2]
[394118910,1763305852143,-446.0,0.00026028,2]
[394118911,1763305852153,-552.0,0.00026028,2]
[394118912,1763305852163,-1099.0,0.00026028,2]
[394118913,1763305852173,-439.0,0.00026082,2]
[394118914,1763305852183,-814.0,0.00026082,2]
[394118915,1763305852194,-446.0,0.00026082,2]
[394118916,1763305852204,-552.0,0.00026082,2]
[394118917,1763305852214,-1099.0,0.00026082,2]
[394118918,1763305852224,-441.31531634,0.00026137,2]
[394118919,1763305852233,-831.94981367,0.00026137,2]
[394118920,1763305852243,-317.0,0.00026137,2]
[394118921,1763305852253,-563.28780433,0.00026137,2]
[394118922,1763305852263,-1114.96978978,0.00026137,2]
[394118923,1763305852273,-150.0,0.00026145,2]
[394118924,1763305852283,-5518.0,0.000262,5]
[394118925,1763305852293,-166.66,0.00026213,2]
[394118926,1763305852303,-479.06402154,0.000263,3]
[394118927,1763305852313,-151.0,0.00026373,2]
[394118928,1763305852322,-249.08869,0.0002665,2]
[394118929,1763305852332,-601.85,0.00026676,2]
[394118930,1763305852342,-160.26946118,0.00026734,2]
[394118931,1763305852351,-608.0,0.00026835,2]
[394118932,1763305852361,-1318.0,0.00026835,2]
[394118933,1763305852371,-575.0,0.00026835,2]
[394118934,1763305852380,-3430.0,0.00026835,2]
[394118935,1763305852393,-1599.0,0.00026835,2]
[394118936,1763305852402,-821.0,0.00026835,2]
[394118937,1763305852412,-793.0,0.00026835,2]
[394118938,1763305852424,-1275.0,0.00026835,2]
[394118939,1763305852436,-1190.0,0.00026835,2]
[394118940,1763305852446,-907.0,0.00026835,2]
[394118941,1763305852457,-1169.38972564,0.00026858,2]
[394118942,1763305852467,-166.66,0.00026977,2]
[394118943,1763305852479,-250.0,0.00027,2]
[394118944,1763305852489,-1022.6180112,0.00027,2]
[394118945,1763305852503,-530.0,0.00027,2]
[394118946,1763305852513,-175.0,0.00027,7]
[394118947,1763305852524,-245.47636787,0.00027005,2]
[394118948,1763305852535,-386.87667747,0.00027048,2]
[394118949,1763305852547,-332.60791905,0.00027048,2]
[394118950,1763305852557,-3646.54,0.00027123,2]
[394118951,1763305852567,-266.16,0.00027123,4]
[394118952,1763305852576,-532.0,0.00027185,7]
[394118953,1763305852586,-535.0,0.00027185,7]
[394118954,1763305852595,-586.73,0.000272,7]
[394118955,1763305852606,-2416.39,0.00027205,2]
[394118956,1763305852616,-1208.37,0.00027205,2]
[394118957,1763305852628,-1208.37,0.00027205,2]
[394118958,1763305852639,-188.66479574,0.00027226,2]
[394118959,1763305852650,-500.0,0.00027226,2]
[394118960,1763305852661,-500.0,0.00027226,2]
[394118961,1763305852671,-151.0,0.00027281,7]
[394118962,1763305852682,-151.0,0.00027281,7]
[394118963,1763305852693,-170.963641,0.00027281,7]
[394118964,1763305852704,-151.0,0.00027281,7]
[394118965,1763305852715,-151.0,0.00027281,7]
[394118966,1763305852725,-245.485694,0.00027281,7]
[394118967,1763305852735,-163.483535,0.00027281,7]
[394118968,1763305852746,-163.483535,0.00027281,7]
[394118969,1763305852757,-163.483535,0.00027281,7]
[394118970,1763305852767,-163.483535,0.00027281,7]
[394118971,1763305852776,-151.0,0.00027281,7]
[394118972,1763305852787,-287.08521,0.00027281,7]
[394118973,1763305852797,-287.08521,0.00027281,7]
[394118974,1763305852808,-287.08521,0.00027281,7]
[394118975,1763305852820,-287.08521,0.00027281,7]
[394118976,1763305852830,-151.0,0.00027281,7]
[394118977,1763305852847,-210.71155614,0.00027286,2]
[394118978,1763305852858,-17221.4713032,0.0002732,2]
[394118979,1763305852868,-151.0,0.0002732,7]
[394118980,1763305852879,-483.170037,0.0002732,7]
[394118981,1763305853063,-151.0,0.0002732,7]
[394118982,1763305853075,-483.170037,0.0002732,7]
[394118983,1763305853085,-483.170037,0.0002732,7]
[394118984,1763305853098,-483.170038,0.0002732,7]
[394118985,1763305853114,-151.0,0.0002732,7]
[394118986,1763305853125,-151.0,0.0002732,7]
[394118987,1763305853139,-1081.086785,0.0002732,7]
[394118988,1763305853149,-1081.086785,0.0002732,7]
[394118989,1763305853160,-1081.086785,0.0002732,7]
[394118990,1763305853171,-1081.086778,0.0002732,7]
[394118991,1763305853181,-151.0,0.0002732,7]
[394118992,1763305853191,-151.0,0.0002732,7]
[394118993,1763305853201,-151.0,0.0002732,7]
[394118994,1763305853211,-151.0,0.0002732,7]
[394118995,1763305853221,-194.68467,0.0002732,7]
[394118996,1763305853230,-151.0,0.0002732,7]
[394118997,1763305853240,-151.0,0.0002732,7]
[394118998,1763305853250,-151.0,0.0002732,7]
[394118999,1763305853262,-151.0,0.0002732,7]
[394119000,1763305853272,-151.0,0.0002732,7]
[394119001,1763305853282,-150.0,0.00027369,2]
[394119002,1763305853292,-1397.19991917,0.0002738,2]
[394119003,1763305853302,-4066.36036739,0.0002739,2]
[394119004,1763305853311,-8033.14064952,0.0002739,2]
[394119005,1763305853320,-151.0,0.0002739,7]
[394119006,1763305853329,-151.0,0.0002739,7]
[394119007,1763305853339,-151.0,0.0002739,7]
[394119008,1763305853349,-151.0,0.0002739,7]
[394119009,1763305853359,-167.040857,0.0002739,7]
[394119010,1763305853369,-151.0,0.0002739,7]
[394119011,1763305853379,-151.0,0.0002739,7]
[394119012,1763305853389,-603.713558,0.0002739,7]
[394119013,1763305853398,-603.713558,0.0002739,7]
[394119014,1763305853408,-603.713558,0.0002739,7]
[394119015,1763305853417,-603.713558,0.0002739,7]
[394119016,1763305853426,-224.775967,0.0002739,7]
[394119017,1763305853435,-224.775967,0.0002739,7]
[394119018,1763305853444,-224.775967,0.0002739,7]
[394119019,1763305853453,-224.775967,0.0002739,7]
[394119020,1763305853463,-151.0,0.0002739,7]
[394119021,1763305853472,-151.0,0.0002739,7]
[394119022,1763305853481,-151.0,0.0002739,7]
[394119023,1763305853491,-151.0,0.0002739,7]
[394119024,1763305853500,-151.0,0.0002739,7]
[394119025,1763305853509,-151.0,0.0002739,7]
[394119026,1763305853519,-151.0,0.0002739,7]
[394119027,1763305853528,-151.0,0.0002739,7]
[394119028,1763305853538,-191.883751,0.0002739,7]
[394119029,1763305853547,-191.883751,0.0002739,7]
[394119030,1763305853556,-178.231537,0.0002739,7]
[394119031,1763305853566,-178.231537,0.0002739,7]
[394119032,1763305853575,-133.43392453,0.0002739,7]
[394119033,1763305853977,-427.23720005,0.00020437,2]
[394119034,1763305853997,-5073.28683283,0.00020437,2]
[394119035,1763305854010,-858.41742724,0.00020437,2]
[394119036,1763305854069,-170.44438333,0.00017599,2]
[394119037,1763305854079,-79.75561683,0.00020437,2]
[394119038,1763305854100,-510.30292305,0.00020437,2]
[394119039,1763305854111,-151.0,0.00021071,2]
[394119040,1763305854121,-430.133906,0.00021071,2]
[394119041,1763305854130,-151.0,0.00021071,2]
[394119042,1763305854142,-430.133906,0.00021071,2]
[394119043,1763305854154,-151.0,0.00021071,2]
[394119044,1763305854164,-9618.77293324,0.00021453,2]
[394119045,1763305854175,-221.94,0.00022,2]
[394119046,1763305854185,-151.0,0.000229,2]
[394119047,1763305854196,-234.179734,0.000229,2]
[394119048,1763305854206,-151.0,0.000229,2]
[394119049,1763305854215,-430.133906,0.000229,2]
[394119050,1763305854225,-430.133906,0.000229,2]
[394119051,1763305854235,-151.0,0.000229,2]
[394119052,1763305854245,-221.94,0.00024428,2]
[394119053,1763305854255,-151.0,0.000248,7]
[394119054,1763305854266,-151.0,0.000248,7]
[394119055,1763305854276,-430.133906,0.000248,7]
[394119056,1763305854285,-430.133906,0.000248,7]
[394119057,1763305854295,-151.0,0.000248,7]
[394119058,1763305854304,-151.0,0.000249,7]
[394119059,1763305854314,-430.133906,0.000249,7]
[394119060,1763305854324,-151.0,0.000249,7]
[394119061,1763305854334,-430.133906,0.000249,7]
[394119062,1763305854344,-505.492,0.00025977,2]
[394119063,1763305854353,-151.0,0.0002732,7]
[394119064,1763305854363,-430.133906,0.0002732,7]
[394119065,1763305854373,-151.0,0.0002732,7]
[394119066,1763305854387,-58.44982647,0.0002739,7]
[394119067,1763305854397,-169.780707,0.0002739,7]
[394119068,1763305854407,-191.883751,0.0002739,7]
[394119069,1763305854418,-178.231537,0.0002739,7]
[394119070,1763305854428,-169.780707,0.0002739,7]
[394119071,1763305854438,-169.780707,0.0002739,7]
[394119072,1763305854449,-178.231537,0.0002739,7]
[394119073,1763305854459,-151.0,0.0002739,7]
[394119074,1763305854468,-169.780707,0.0002739,7]
[394119075,1763305854478,-151.0,0.0002739,7]
[394119076,1763305854488,-197.643736,0.0002739,7]
[394119077,1763305854499,-197.643736,0.0002739,7]
[394119078,1763305854509,-197.643736,0.0002739,7]
[394119079,1763305854518,-151.0,0.0002739,7]
[394119080,1763305854528,-197.643736,0.0002739,7]
[394119081,1763305854538,-208.9458,0.0002739,7]
[394119082,1763305854549,-151.0,0.0002739,7]
[394119083,1763305854559,-151.0,0.0002739,7]
[394119084,1763305854569,-151.0,0.0002739,7]
[394119085,1763305854580,-151.0,0.0002739,7]
[394119086,1763305854590,-3999.996,0.0002739,7]